Cogmind - Beta 14 @@@ ROGUE MODE // 2024.09.06 @ 20:03:45 Player: saltine Result: Destroyed by D-53 Grenadier with Mini Grenade Launcher Performance ------------- Evolutions (0) 0 Regions Visited (2) 400 Robots Destroyed (9) 45 Value Destroyed (357) 357 Prototype IDs (0) 0 Alien Tech Used (0) 0 Bonus (0) 0 TOTAL SCORE: 802 Bonus ------- None Cogmind --------- Core Integrity 0/250 Matter 282/300 Energy 100/100 System Corruption 0% Temperature Cool (0) Movement Core (100) Ox1 Location -10/Mines Parts ------- > --- POWER (1) -------- (None) > --- PROPULSION (2) --- (None) > --- UTILITY (2) ------ Small Storage Unit > --- WEAPON (2) ------- (None) > --- INVENTORY (8) ---- Light Ion Engine Light Nuclear Core Aluminum Leg Wheel Compact Wheel Seismic Detector Peak State ------------ > --- POWER ------------ Ion Engine > --- PROPULSION ------- Aluminum Leg Aluminum Leg > --- UTILITY ---------- Small Storage Unit Seismic Detector > --- WEAPON ----------- Medium Laser Assault Rifle > --- INVENTORY -------- Light Ion Engine Light Nuclear Core Light Treads Light Treads Wheel Compact Wheel EM Pulse Gun Mining Laser [Rating: 8] Favorites ----------- Power Ion Engine Engine Ion Engine Propulsion Light Treads Treads Light Treads Leg Aluminum Leg Utility Small Storage Unit Device Seismic Detector Storage Small Storage Unit Protection Light Armor Plating Weapon Assault Rifle Energy Gun Medium Laser Energy Cannon Beam Cannon Ballistic Gun Assault Rifle Special Weapon Mining Laser Build | -11 -10 -10 ------- Run | Yrd Mat Min Slots Evolved . | . . . Power . | . . . Propulsion . | . . . Utility . | . . . Weapon . | . . . Parts Attached 8 | . 4 4 Power . | . . . Engine . | . . . Core . | . . . Reactor . | . . . Propulsion 2 | . 2 . Treads 2 | . 2 . Leg . | . . . Wheel . | . . . Hover . | . . . Flight . | . . . Utility 2 | . 2 . Device 1 | . 1 . Storage . | . . . Processor . | . . . Hackware . | . . . Protection 1 | . 1 . Artifact . | . . . Weapon 4 | . . 4 Energy Gun 1 | . . 1 Energy Cannon 1 | . . 1 Ballistic Gun 1 | . . 1 Ballistic Cannon . | . . . Launcher . | . . . Special Weapon 1 | . . 1 Impact Weapon . | . . . Slashing Weapon . | . . . Piercing Weapon . | . . . Special Melee Weapon . | . . . Unidentified Prototypes . | . . . Parts Lost 9 | . . 9 Power 1 | . . 1 Propulsion 2 | . . 2 Utility 1 | . . 1 Weapon 5 | . . 5 Highest Loss Streak 8 | . . 8 To Critical Strikes . | . . . Average Slot Usage (%) 94 | . 91 96 Engine 13 | . 14 13 Treads 19 | . 5 27 Leg 8 | . 22 . Device 1 | . 3 . Storage 14 | . 14 14 Protection 9 | . 2 13 Energy Gun 5 | . 14 . Energy Cannon 1 | . . 2 Ballistic Gun 19 | . 14 22 Peak Build Rating 8 | 6 8 8 Average Rating 7 | 6 6 7 On Entrance 6 | 6 6 8 Naked Turns . | . . . Heaviest Build 18 | 14 17 18 Greatest Support 40 | 20 40 40 Greatest Overweight (x) 1 | . . 1 Average Overweight (x) . | . . . Largest Inventory Capacity 8 | 8 8 8 Average Capacity 8 | 8 8 8 Most Carried 8 | 6 8 8 Average Carried 7 | 6 7 7 Final Capacity 8 | 8 8 8 Final Carried 8 | 6 8 6 Class Distribution -------------------- 100% | Mutant Dominant Class ---------------- Mutant | -10/Materials Mutant | -10/Mines Resources | -11 -10 -10 ----------- Run | Yrd Mat Min Matter Collected 337 | 200 97 40 Remotely . | . . . Salvage Created 394 | . 313 81 Parts 16 | . 14 2 Haulers Intercepted . | . . . Recyclers Shooed . | . . . Parts Field Recycled . | . . . Retrieved Matter . | . . . Parts Self-Destructed . | . . . Prevented . | . . . Kills | -11 -10 -10 ------- Run | Yrd Mat Min Combat Hostiles Destroyed 8 | . 6 2 Guns 7 | . 5 2 AOE 1 | . 1 . Classes Destroyed 2 | . 2 . Recycler 1 | . 1 . Grunt 8 | . 6 2 Best Kill Streak 6 | . 6 2 Combat Bots Only 5 | . 5 2 Max Kills in Single Turn 2 | . 2 1 Gunslinging . | . . . Exploded 1 | . 1 . Melee . | . . . Uniques/NPCs Destroyed . | . . . Combat | -11 -10 -10 -------- Run | Yrd Mat Min Hostile Shots Fired 58 | . 29 29 Missed 11 | . 7 4 Damage Taken 1087 | . 275 812 Core 255 | . 42 213 Absorbed by Shields . | . . . Core Remaining (%) 100 | 100 . . Volleys Fired 41 | . 19 22 Largest 2 | . 2 2 Hottest 80 | . 70 80 Shots Fired 68 | . 38 30 Gun 65 | . 38 27 Cannon 3 | . . 3 Launcher . | . . . Special . | . . . Kinetic 44 | . 19 25 Thermal 22 | . 19 3 Explosive . | . . . Electromagnetic 2 | . . 2 Robot Hit Streak 11 | . 4 11 Robot Miss Streak 3 | . 3 3 Penetration Max . | . . . Secondary Targets 1 | . 1 . Max Gunslinging Chain 1 | . 1 . Shots Hit Robots 45 | . 23 22 Core Hits 17 | . 11 6 Critical Kills . | . . . Critical Parts Destroyed 1 | . . 1 Critical Strikes 3 | . 2 1 Burn 2 | . 2 . Destroy 1 | . . 1 Melee Attacks . | . . . Impact . | . . . Slashing . | . . . Piercing . | . . . Sneak Attacks . | . . . Combat Hostiles . | . . . Follow-up Attacks . | . . . Damage Inflicted 767 | . 458 309 Guns 563 | . 292 271 Cannons 17 | . . 17 Explosions 166 | . 166 . Melee . | . . . Ramming 21 | . . 21 Kinetic 417 | . 167 250 Thermal 308 | . 291 17 Explosive . | . . . Electromagnetic 21 | . . 21 Impact . | . . . Slashing . | . . . Piercing . | . . . Highest Corruption . | . . . Average Corruption . | . . . Corruption Purged . | . . . Corruption Blocked . | . . . Overload Shots . | . . . Overflow Damage 50 | . 50 . Projectiles . | . . . Explosions 50 | . 50 . Melee . | . . . Knockbacks 1 | . . 1 Impact 1 | . . 1 Kinetic . | . . . Secondary . | . . . Self-Inflicted Damage 2 | . . 2 Shots . | . . . Rammed 3 | . . 3 Targets Rammed 3 | . . 3 Kicked . | . . . Crushed . | . . . Highest Temperature 198 | . 198 126 Average Temperature 78 | . 83 66 Received Heat Transfer 243 | . 153 90 Siege Activations . | . . . Robots Corrupted . | . . . Combat Hostiles . | . . . Parts Fried . | . . . Impact Corruptions . | . . . Robots Melted . | . . . Combat Hostiles . | . . . Parts Melted . | . . . Heat Transferred 655 | . 618 37 Parts Sabotaged . | . . . Parts Stolen . | . . . Parts Stripped . | . . . Power Chain Reactions . | . . . Alert | -11 -10 -10 ------- Run | Yrd Mat Min Peak Influence 229 | . 229 128 Initial 88 | . . 88 Average 100 | . 139 94 Maximum Alert Level 1 | . 1 . Low Security (%) 95 | 100 84 100 Level 1 4 | . 15 . Level 2 . | . . . Level 3 . | . . . Level 4 . | . . . Level 5 . | . . . High Security . | . . . Max Security . | . . . Squads Dispatched 1 | . 1 . Investigation 1 | . 1 . Extermination . | . . . Reinforcement . | . . . Assault . | . . . Garrison . | . . . Intercept . | . . . Searches Triggered . | . . . Construction Impeded . | . . . Haulers Reinforced . | . . . Active Scanning Responses . | . . . Cargo Convoy Interrupts . | . . . Stealth | -11 -10 -10 --------- Run | Yrd Mat Min Distress Signals . | . . . Communications Jammed . | . . . Distress Signals . | . . . Times Spotted 10 | . 7 3 Peak Tracking Total 3 | . 3 2 Tactical Retreats . | . . . Traps | -11 -10 -10 ------- Run | Yrd Mat Min Traps Triggered 1 | . 1 . Indirectly . | . . . Trap Hack Attempts . | . . . Triggered . | . . . Disarmed . | . . . Reprogrammed . | . . . Reused . | . . . Traps Extracted . | . . . Installed . | . . . Triggered . | . . . Machines | -11 -10 -10 ---------- Run | Yrd Mat Min Machines Disabled 4 | . 4 . Max in Single Turn 4 | . 4 . Machines Repaired . | . . . Machines Dismantled . | . . . Machines Sabotaged . | . . . Overloaded Fab Kills . | . . . Hacking | -11 -10 -10 --------- Run | Yrd Mat Min Machines Accessed 2 | . 2 . Terminals 1 | . 1 . Fabricators . | . . . Repair Stations . | . . . Recycling Units 1 | . 1 . Scanalyzers . | . . . Garrison Access . | . . . Total Hacks 4 | . 4 . Successful 3 | . 3 . Failed 1 | . 1 . Catastrophic 1 | . 1 . Database Lockouts . | . . . Manual 2 | . 2 . Terminals 3 | . 3 . Fabricators . | . . . Repair Stations . | . . . Recycling Units 1 | . 1 . Scanalyzers . | . . . Garrison Access . | . . . Terminal Hacks 1 | . 1 . Terminal Index 1 | . 1 . Fabricator Hacks . | . . . Repair Station Hacks . | . . . Recycling Unit Hacks 1 | . 1 . Retrieve Components 1 | . 1 . Scanalyzer . | . . . Garrison Access Hacks . | . . . Unauthorized Hacks 1 | . 1 . Terminals 1 | . 1 . Skim 1 | . 1 . Fabricators . | . . . Repair Stations . | . . . Recycling Units . | . . . Scanalyzers . | . . . Garrison Access . | . . . Data Cores Recovered . | . . . Used . | . . . Hacking Detections 2 | . 2 . Full Trace Events . | . . . Feedback Events . | . . . Feedback Blocked . | . . . Robot Schematics Acquired . | . . . Robots Built . | . . . Authchips . | . . . Time . | . . . Total Robot Build Rating . | . . . Part Schematics Acquired . | . . . Parts Built . | . . . Authchips . | . . . Time . | . . . Total Part Build Rating . | . . . Parts Repaired . | . . . Time . | . . . Parts Recycled . | . . . Recycled Matter . | . . . Retrieved Matter . | . . . Retrieved Components 6 | . 6 . Parts Scanalyzed . | . . . Part Schematics Acquired . | . . . Parts Damaged . | . . . Bothacking | -11 -10 -10 ------------ Run | Yrd Mat Min Used RIF Installer . | . . . Robots Hacked . | . . . Non-combat . | . . . Combat . | . . . Robot Hacks Applied . | . . . Relay Couplers Released . | . . . Fabnet Peak Effective % . | . . . Robots Rewired . | . . . Allies Hacked . | . . . Hacks Repelled . | . . . Allies | -11 -10 -10 -------- Run | Yrd Mat Min Total Allies . | . . . Largest Group . | . . . Highest-Rated Group . | . . . Highest-Rated Ally . | . . . Total Orders . | . . . Ally Attacks . | . . . Total Damage . | . . . Kills . | . . . Allies Corrupted . | . . . Allies Melted . | . . . Intel | -11 -10 -10 ------- Run | Yrd Mat Min Robot Analysis Total . | . . . Derelict Logs Recovered . | . . . Drone Launches . | . . . Drone Recoveries . | . . . Exploration | -11 -10 -10 ------------- Run | Yrd Mat Min Turns Passed 823 | 78 263 482 Spaces Moved 480 | 66 154 260 Core 3 | . . 3 Treads 283 | . 26 257 Legs 194 | 66 128 . Wheels . | . . . Hover . | . . . Flight . | . . . Fastest Speed 100 | 120 120 100 Average Speed 143 | 120 126 159 Slowest Speed 160 | 120 160 160 Overloaded Moves . | . . . Propulsion Burnouts . | . . . Robots Hopped . | . . . Cave-ins Triggered . | . . . Exploration Rate (%) 26 | 5 25 49 Regions Visited 2 Branch Regions 1 Pre-discovered Areas 1 | . . 1 Known Exits Taken . | . . . Unknown Exits Taken 2 | 1 1 . Scrap Searched . | . . . Spaces Dug . | . . . Terrain Destroyed 11 | . 11 . Melee . | . . . Projectile . | . . . AOE 11 | . 11 . Terrain Rammed . | . . . Walls Destroyed . | . . . Machines Disabled . | . . . Actions | -11 -10 -10 --------- Run | Yrd Mat Min Total 544 | 65 183 296 Wait 8 | . 2 6 Move 478 | 65 153 260 Hop . | . . . Pick Up 3 | . 3 . Fast Attach 4 | . 2 2 Attach 2 | . . 2 Detach . | . . . Swap 2 | . 2 . Drop 3 | . 2 1 Fire 41 | . 19 22 Melee . | . . . Ram 1 | . . 1 Kick . | . . . Crush 2 | . . 2 Escape Stasis . | . . . Rewire . | . . . Trap . | . . . Miscellaneous . | . . . Route ------- -11/Scrapyard -10/Materials (discovered 2 exits: [*Mat] / [*Min]) -10/Mines (discovered 2 exits: [*Mat x2]) History --------- Turn | Location | Event 1 | -11/Scrapyard | Discovered new exit (range 3) 79 | -11/Scrapyard | Entered Materials 234 | -10/Materials | Discovered new exit (range 8) 284 | -10/Materials | Discovered new exit (range 14) 316 | -10/Materials | Build established: Mutant 342 | -10/Materials | Entered Mines 342 | -10/Mines | Discovered new exit (range 9) 424 | -10/Mines | Learned location of Storage (-8) 605 | -10/Mines | Discovered new exit (range 8) 769 | -10/Mines | Assembled infested the area 791 | -10/Mines | Core integrity fell below 50% 820 | -10/Mines | Core integrity fell below 20% 824 | -10/Mines | Destroyed by D-53 Grenadier with Mini Grenade Launcher Last Messages --------------- 00507_ K-01 Serf collects debris. 00512_ R-06 Scavenger collects Aluminum Leg. 00516_ R-06 Scavenger collects Ion Engine. 00517_ K-01 Serf collects debris. 00542_ Slammed into T-07 Excavator. 00605_ EXIT=FOUND 00769_ ALERT: Infestation in the mines, dispatching Demolisher response squad. 00788_ C-30 ARC bursts open, deploying its payload. 00788_ D-53 Grenadier unfolds itself. 00796_ Assault Rifle destroyed. 00801_ Lgt. Armor Plating destroyed. 00803_ EM Pulse Gun destroyed. 00805_ D-53 Grenadier misfires. 00813_ Ion Engine destroyed. 00813_ Assault Rifle destroyed. 00814_ The unstable cave ceiling collapses. 00815_ Mining Laser destroyed. 00819_ Lgt. Treads destroyed. 00823_ Slammed into D-53 Grenadier. Map ----- +----------------------------------------------------+ | ???????????????## #####??????????????????? | | ???????????????# ##?????????????????? | | ????###????????# ##????????????????? | | ???## #??????## < ##???????????????? | | ???# ###?### ##??????????????? | | ???# ### ##### ###########????? | | ???# ##???## #????? | | ????# ###????## ######## #????? | | ????### ##??????# #??????# #????? | | ??????## ##??????## ##????### ### | | ???????######??????## ##?????# | | ??????????????????## ##??????# ###### | | ?????????????????## ####????# #??????? | | ???????????????### #???# #??????? | | ??###?????????## """ #### #???# #??????? | | ?## ##???????# """ #??# ##### #??????? | | ?# ##??????# """ ##?# #??????? | | ??# #??????## #?####### #####??? | | ??# ######??###### #?????# #??? | | ??# ## ###?????## #?????# #??? | | ??## ##?????## ##?????# #??? | | ???# #####?### #??????# """ #### | | ???# ###?# #??????# """ | | ???# ### #??????# """ | | ???# # # #??????# #### | | ???##### @d %#??? """ #??? | | ???????# # #?# """ #??? | | ???????# ## #?# ### """ #??? | | ???????## ## #?#????# #??? | | ????????## ## # # ## #??????# """ #??? | | ?????????#######?# ###### ??????# """ #??? | | ?????????????????# #??###????????""" #??? | | ?????????????????# #?????????????? #??? | | ?????????????????## #?????????????? #??? | | ??????????????????# #??????????????######??? | | ??????????????????# #??????????????????????? | | ??????????????????# #??????????????????????? | | ??????????????????# #??????????????????????? | | ??????????????????# #??????????????????????? | | ??????????????????# ??????????????????????? | | ??????????????????# ??????????????????????? | | ??????????????????####??????????????????????? | | ????????????????????????????????????????????? | | ????????????????????????????????????????????? | | ????????????????????????????????????????????? | | ????????????????????????????????????????????? | | ????????????????????????????????????????????? | | ????????????????????????????????????????????? | | ????????????????????????????????????????????? | | ????????????????????????????????????????????? | +----------------------------------------------------+ Best States ------------- Heat Dissipation 25 Energy Generation 10 Energy Capacity 250 Matter Stores 300 Matter Capacity 300 Sight Range 16 Terrain Scan Density 10 Armor Coverage 150 Evasion (%) 55 Recoil Reduction 2 Item Schematics ----------------- None Robot Schematics ------------------ None Fabricated ------------ Nothing Alien Tech Used ----------------- None Achievements -------------- None Challenges ------------ None Game ------ Seed HypercooledThermicSlayer Manual? 0 Play Time 00:06:12 Cumulative 192.5 hours Start 2024.09.06 @ 19:59:26 End 2024.09.06 @ 20:03:45 Sessions 1 Manual Loads 0 Difficulty Rogue Special Mode None Game No. 135 Rogue 135 Adventurer 0 Explorer 0 Win Type - Total 9 Types 3/0/4/1/0/0/1/0/0 Lore% 72 Gallery% 70 Achievement% 63 Wizard Run 0 Options --------- Layout 0 ASCII 0 Keyboard 0 Movement Arrows Keybinds 0 Fullscreen 2 Font 18/SmallcapsGlow Map View 76x50 Zoom Use 0% Tactical HUD 1 Map Filters NONE Filters NONE Steam 1 RUN: 54a7ae78-5cee-4b69-868c-e5b08207b864